bitfinex/quotes_SOLUSD_20250306
["timestamp","ask_amount","ask_price","bid_price","bid_amount"]
[1741242641182,80.8,149.57,149.53,338.94919119]
[1741242641390,80.8,149.57,149.53,312.0]
[1741242641580,80.8,149.57,149.52,0.03]
[1741242642265,80.8,149.57,149.53,26.94919119]
[1741242643081,80.8,149.59,149.55,26.94919119]
[1741242643388,80.8,149.59,149.52,1.81996157]
[1741242643389,80.8,149.59,149.56,27.09135276]
[1741242643566,6.0077,149.62,149.59,0.14216157]
[1741242643567,86.8077,149.62,149.59,0.14216157]
[1741242643759,80.8,149.62,149.61,26.94919119]
[1741242643964,12.6746,149.64,149.59,26.94919119]
[1741242644264,12.6746,149.64,149.57,26.94919119]
[1741242644459,93.4746,149.63,149.54,0.14216157]
[1741242644668,80.8,149.62,149.56,0.14216157]
[1741242644869,80.8,149.61,149.56,0.14216157]
[1741242645684,80.8,149.6,149.54,26.94919119]
[1741242646486,80.8,149.59,149.54,26.94919119]
[1741242646991,80.8,149.59,149.56,26.94919119]
[1741242647365,80.8,149.59,149.55,27.09135276]
[1741242647670,80.8,149.59,149.56,312.0]
[1741242650083,80.8,149.58,149.56,312.0]
[1741242650885,80.8,149.58,149.52,26.97919119]
[1741242651069,6.0754,149.59,149.52,0.03]
[1741242651070,80.8,149.57,149.52,0.03]
[1741242651264,80.8,149.56,149.52,0.03]
[1741242654163,99.44964886,149.55,149.52,0.0001]
[1741242654892,80.8,149.55,149.52,0.0001]
[1741242655792,80.8,149.55,149.49,26.94919119]
[1741242655965,80.8,149.54,149.49,26.94919119]
[1741242657185,80.8,149.54,149.49,338.94919119]
[1741242657886,82.3217,149.54,149.48,0.04]
[1741242658893,82.3217,149.54,149.49,26.94919119]
[1741242659082,82.3217,149.54,149.48,26.98919119]
[1741242659867,82.3217,149.54,149.49,26.94919119]
[1741242660293,18.64964886,149.51,149.42,26.94919119]
[1741242660607,95.0085,149.5,149.41,0.03]
[1741242660809,95.0085,149.5,149.42,26.94919119]
[1741242661001,95.0085,149.5,149.44,26.94919119]
[1741242661190,80.8,149.49,149.44,26.94919119]
[1741242661386,80.8,149.48,149.46,26.94919119]
[1741242662292,6.5738,149.52,149.47,26.94919119]
[1741242662486,87.3738,149.52,149.48,26.94919119]
[1741242663415,80.8,149.52,149.49,26.94919119]
[1741242663995,80.8,149.52,149.48,26.94919119]
[1741242664197,80.8,149.52,149.47,26.94919119]
[1741242664520,80.8,149.52,149.46,16.85315187]
[1741242664808,20.0,149.49,149.45,16.99531344]
[1741242664989,20.29734886,149.54,149.43,16.85315187]
[1741242664990,80.8,149.48,149.43,16.85315187]
[1741242665803,80.8,149.48,149.44,0.14216157]
[1741242666006,80.8,149.47,149.43,16.85315187]
[1741242666610,80.8,149.46,149.44,26.97256004]
[1741242666813,12.6746,149.49,149.44,26.97256004]
[1741242667112,112.12424886,149.48,149.41,0.03]
[1741242667308,93.4746,149.47,149.41,0.03]
[1741242668197,93.4746,149.47,149.41,27.00256004]
[1741242669598,93.4746,149.47,149.42,26.97256004]
[1741242669808,93.4746,149.47,149.41,27.00256004]
[1741242670523,93.4746,149.46,149.41,0.03]
[1741242670690,93.4746,149.46,149.41,27.00256004]
[1741242670888,93.4746,149.46,149.41,0.03]
[1741242671908,93.4746,149.46,149.41,27.00256004]
[1741242672103,80.8,149.46,149.43,26.97256004]
[1741242672526,80.8,149.46,149.42,26.97256004]
[1741242674332,80.8,149.46,149.42,338.97256004]
[1741242675195,80.8,149.46,149.43,0.14216157]
[1741242675501,80.8,149.46,149.43,27.11472161]
[1741242675817,80.8,149.46,149.45,26.97256004]
[1741242676017,80.8,149.5,149.46,0.14216157]
[1741242676217,80.8,149.5,149.49,26.97256004]
[1741242676612,0.033,149.52,149.5,0.14216157]
[1741242676815,0.033,149.52,149.51,26.97256004]
[1741242677610,0.033,149.52,149.51,27.11472161]
[1741242678623,80.8,149.61,149.52,19.07613357]
[1741242678828,80.8,149.61,149.6,26.97256004]
[1741242679018,0.033,149.62,149.6,27.11472161]
[1741242679216,0.033,149.62,149.61,26.97256004]
[1741242680107,0.033,149.62,149.61,27.11472161]
[1741242680532,0.033,149.62,149.61,45.76437047]
[1741242680835,0.033,149.62,149.61,27.11472161]
[1741242681908,0.033,149.62,149.61,339.11472161]
[1741242682109,0.033,149.62,149.61,358.19085518]
[1741242682309,0.033,149.67,149.62,0.42648471]
[1741242682510,0.07300008,149.67,149.66,27.11472161]
[1741242684234,0.07300008,149.67,149.65,0.14216157]
[1741242684708,0.07300008,149.67,149.64,26.97256004]
[1741242684911,0.07300008,149.67,149.61,76.04021974]
[1741242684912,0.07300008,149.67,149.61,26.97256004]
[1741242685111,80.8,149.66,149.61,0.14216157]
[1741242685320,80.8,149.66,149.6,26.97256004]
[1741242685526,80.8,149.65,149.61,0.14216157]
[1741242686451,19.16530008,149.67,149.6,26.97256004]
[1741242686452,80.8,149.64,149.6,26.97256004]
[1741242686737,80.8,149.63,149.56,26.97256004]
[1741242686915,80.8,149.62,149.56,26.97256004]
[1741242687115,80.8,149.62,149.58,0.14216157]
[1741242687330,93.4746,149.61,149.55,26.97256004]
[1741242687525,93.4746,149.61,149.56,0.14216157]
[1741242687731,93.4746,149.66,149.6,26.97256004]
[1741242688031,80.8,149.65,149.6,26.97256004]
[1741242688333,20.0,149.62,149.6,0.14216157]
[1741242688510,20.0,149.62,149.6,27.11472161]
[1741242688821,20.0,149.62,149.6,0.14216157]
[1741242689017,20.0,149.62,149.58,26.97256004]
[1741242689227,20.0,149.62,149.56,27.11472161]
[1741242689532,80.8,149.61,149.58,0.14216157]
[1741242690535,80.8,149.61,149.58,27.11472161]
[1741242691221,80.8,149.61,149.58,0.14216157]
[1741242691415,80.8,149.6,149.56,338.97256004]
[1741242691730,80.8,149.6,149.55,26.97256004]
[1741242692238,80.8,149.59,149.58,26.97256004]
[1741242692415,20.0,149.62,149.58,26.97256004]
[1741242692921,80.8,149.63,149.59,0.14216157]
[1741242693123,0.033,149.64,149.59,27.11472161]
[1741242693435,0.033,149.64,149.59,0.14216157]
[1741242694433,0.033,149.64,149.6,27.11472161]
[1741242694608,0.033,149.64,149.61,26.97256004]
[1741242694812,0.033,149.64,149.62,26.97256004]
[1741242695016,0.033,149.64,149.61,27.11472161]
[1741242695418,0.033,149.64,149.62,26.97256004]
[1741242695732,0.033,149.64,149.63,27.11472161]
[1741242697312,0.033,149.64,149.63,45.76437047]
[1741242698222,0.033,149.64,149.63,357.76437047]
[1741242698432,0.033,149.64,149.63,440.91417492]
[1741242698620,0.07300008,149.67,149.66,38.933972]
[1741242698821,0.07300008,149.67,149.66,168.91931182]
[1741242699017,0.39194274,149.69,149.68,0.14216157]
[1741242699329,0.39194274,149.69,149.68,45.90653204]
[1741242699829,0.39194274,149.69,149.68,123.80617492]
[1741242701737,0.39194274,149.69,149.68,435.80617492]
[1741242702236,0.033,149.76,149.7,0.14216157]
[1741242702540,0.033,149.76,149.75,0.14216157]
[1741242703551,0.033,149.76,149.73,0.14216157]
[1741242703837,0.033,149.76,149.74,0.14216157]
[1741242706519,0.033,149.76,149.73,27.11472161]
[1741242707737,0.033,149.76,149.72,0.14216157]
[1741242707928,0.033,149.76,149.7,26.97256004]
[1741242708127,0.033,149.76,149.69,26.97256004]
[1741242708426,80.8,149.75,149.7,0.14216157]
[1741242708826,80.8,149.75,149.68,26.97256004]
[1741242709031,80.8,149.75,149.69,0.14216157]
[1741242709229,80.8,149.75,149.67,26.97256004]
[1741242709427,80.8,149.74,149.67,26.97256004]
[1741242709635,20.0,149.71,149.65,26.97256004]
[1741242709838,87.1059,149.7,149.62,26.97256004]
[1741242710031,80.8,149.69,149.62,26.97256004]
[1741242710230,80.8,149.69,149.63,0.14216157]
[1741242710427,80.8,149.69,149.64,0.14216157]
[1741242710835,80.8,149.69,149.63,26.97256004]
[1741242711046,80.8,149.69,149.62,26.97256004]
[1741242711240,93.4746,149.68,149.58,0.03]
[1741242711444,80.8,149.67,149.59,26.97256004]
[1741242711638,80.8,149.66,149.58,27.00256004]
[1741242711837,80.8,149.66,149.59,0.14216157]
[1741242712035,94.4,149.65,149.58,0.03]
[1741242712253,94.4,149.64,149.59,0.14216157]
[1741242712726,94.4,149.64,149.59,27.11472161]
[1741242713163,80.8,149.64,149.61,0.14216157]
[1741242715252,80.8,149.64,149.62,27.11472161]
[1741242715433,80.8,149.64,149.63,27.11472161]
[1741242715633,94.4,149.69,149.63,27.11472161]
[1741242715842,80.8,149.68,149.63,27.11472161]
[1741242716049,80.8,149.68,149.64,0.14216157]
[1741242716452,80.8,149.68,149.64,27.11472161]
[1741242717853,80.8,149.68,149.66,0.14216157]
[1741242718154,80.8,149.7,149.66,27.11472161]
[1741242718336,80.8,149.7,149.66,339.11472161]
[1741242718949,80.8,149.7,149.66,312.14216157]
[1741242719256,80.8,149.7,149.64,0.14216157]
[1741242720135,80.8,149.7,149.65,0.14216157]
[1741242720642,80.8,149.7,149.63,26.97256004]
[1741242720849,80.8,149.69,149.63,26.97256004]
[1741242721051,20.0,149.66,149.63,0.14216157]
[1741242721463,20.0,149.66,149.6,26.97256004]
[1741242721663,80.8,149.65,149.6,26.97256004]
[1741242721959,80.8,149.65,149.61,26.97256004]
[1741242722134,80.8,149.65,149.61,27.11472161]
[1741242722447,80.8,149.65,149.61,26.97256004]
[1741242722649,80.8,149.64,149.6,26.97256004]
[1741242722855,80.8,149.64,149.58,312.03]
[1741242722856,80.8,149.64,149.59,26.97256004]
[1741242723253,80.8,149.63,149.59,26.97256004]
[1741242723436,80.8,149.62,149.59,26.97256004]
[1741242724243,80.8,149.62,149.58,0.03]
[1741242724656,80.8,149.61,149.58,0.03]
[1741242725638,80.8,149.61,149.58,0.0001]
[1741242725849,94.4,149.6,149.58,0.0001]
[1741242726048,94.4,149.59,149.53,0.03]
[1741242726249,94.4,149.58,149.53,0.03]
[1741242729351,94.4,149.58,149.54,0.14216157]
[1741242730149,80.8,149.57,149.54,0.14216157]
[1741242730554,94.4,149.56,149.53,0.03]
[1741242730756,20.0,149.56,149.53,0.03]
[1741242732046,20.0,149.56,149.53,0.17216157]
[1741242733265,20.0,149.56,149.53,0.03]
[1741242735669,26.5314,149.56,149.47,1.639]
[1741242735846,94.4,149.55,149.48,26.97256004]
[1741242736047,94.4,149.55,149.48,0.14216157]
[1741242736247,94.4,149.54,149.46,26.97256004]
[1741242736680,94.4,149.54,149.47,0.14216157]
[1741242737679,94.4,149.54,149.45,26.97256004]
[1741242737876,94.4,149.54,149.47,0.14216157]
[1741242738076,94.4,149.54,149.47,26.97256004]
[1741242738254,94.4,149.54,149.45,26.97256004]
[1741242738456,94.4,149.54,149.46,0.14216157]
[1741242739381,94.4,149.54,149.44,26.97256004]
[1741242739685,94.4,149.54,149.43,0.03]
[1741242739686,20.0,149.5,149.43,0.03]
[1741242739851,80.8,149.49,149.43,0.03]
[1741242740045,20.0,149.5,149.43,0.03]
[1741242740046,20.0,149.45,149.43,0.03]
[1741242740248,80.8,149.44,149.43,0.03]
[1741242740776,80.8,149.44,149.43,0.17216157]
[1741242741278,80.8,149.44,149.43,0.03]
[1741242741964,6.4056,149.48,149.43,27.14472161]
[1741242742275,80.8,149.48,149.45,26.97256004]
[1741242742652,80.8,149.48,149.45,0.14216157]
[1741242743279,80.8,149.48,149.44,26.97256004]
[1741242743468,94.4,149.47,149.43,0.03]
[1741242743669,80.8,149.46,149.43,0.03]
[1741242744058,94.4,149.45,149.43,0.0001]
[1741242744263,94.4,149.44,149.43,0.0001]
[1741242744474,100.8573,149.44,149.43,0.0001]
[1741242744961,6.4573,149.44,149.43,0.0001]
[1741242745166,20.0,149.42,149.41,0.0001]
[1741242747083,13.6,149.43,149.41,0.0001]
[1741242748261,6.2,149.46,149.41,0.14226157]
[1741242748466,20.0468,149.48,149.44,26.97256004]
[1741242748786,11.51753639,149.52,149.45,26.97256004]
[1741242748992,13.6,149.51,149.45,26.97256004]
[1741242749379,94.4,149.51,149.45,26.97256004]
[1741242749584,94.4,149.51,149.45,0.14216157]
[1741242750286,94.4,149.51,149.45,26.97256004]
[1741242750792,20.0,149.48,149.45,338.97256004]
[1741242752381,20.0,149.48,149.45,312.0]
[1741242752581,20.0,149.48,149.43,26.97256004]
[1741242752781,20.0,149.48,149.44,26.97256004]
[1741242752982,20.0,149.48,149.45,26.97256004]
[1741242753289,20.0,149.48,149.45,0.14216157]
[1741242754174,20.0,149.48,149.41,0.14226157]
[1741242754494,20.0,149.48,149.41,0.0001]
[1741242754681,20.0,149.48,149.44,26.97256004]
[1741242754880,80.8,149.47,149.43,26.97256004]
[1741242755271,80.8,149.47,149.41,0.14226157]
[1741242755474,80.8,149.46,149.43,338.97256004]
[1741242755667,80.8,149.46,149.45,27.11472161]
[1741242755884,80.8,149.48,149.45,27.11472161]
[1741242757894,80.8,149.48,149.45,0.14216157]
[1741242758779,80.8,149.48,149.45,27.11472161]
[1741242758978,80.8,149.48,149.45,339.11472161]
[1741242759296,80.8,149.48,149.45,312.14216157]
[1741242760297,80.8,149.48,149.46,0.14216157]
[1741242760498,0.033,149.51,149.47,16.84613291]
[1741242760813,0.033,149.51,149.5,16.98829448]
[1741242760976,0.033,149.51,149.47,1.5236]
[1741242761282,80.8,149.5,149.45,16.98829448]
[1741242761482,80.8,149.5,149.46,16.84613291]
[1741242762017,80.8,149.5,149.45,0.14216157]
[1741242762191,80.8,149.5,149.44,18.79181043]
[1741242762390,80.8,149.5,149.47,0.14216157]
[1741242762593,0.033,149.51,149.49,16.98829448]
[1741242762906,0.033,149.51,149.5,16.98829448]
[1741242763102,0.033,149.51,149.5,16.84613291]
[1741242763313,0.033,149.51,149.49,0.14216157]
[1741242763621,0.033,149.51,149.5,312.0]
[1741242763799,0.033,149.51,149.5,328.84613291]
[1741242764213,0.033,149.51,149.5,328.98829448]
[1741242764578,0.033,149.51,149.5,312.14216157]
[1741242764983,0.033,149.51,149.44,76.04021974]
[1741242765283,0.033,149.51,149.46,16.84613291]
[1741242765284,80.8,149.5,149.46,16.84613291]
[1741242765495,80.8,149.49,149.45,16.84613291]
[1741242765892,80.8,149.49,149.44,0.14216157]
[1741242766096,80.8,149.49,149.45,16.84613291]
[1741242766805,80.8,149.49,149.46,0.14216157]
[1741242767012,80.8,149.49,149.46,16.98829448]
[1741242767214,80.8,149.49,149.47,16.84613291]
[1741242767515,0.033,149.51,149.49,0.14216157]
[1741242767721,0.033,149.51,149.49,16.98829448]
[1741242768093,0.033,149.51,149.49,328.98829448]
[1741242768621,0.033,149.51,149.49,339.09600194]
[1741242769499,0.033,149.51,149.5,26.95384037]
[1741242769994,0.033,149.51,149.47,26.95384037]
[1741242770198,80.8,149.5,149.46,26.95384037]
[1741242770419,80.8,149.5,149.49,27.09600194]
[1741242771000,80.8,149.5,149.49,0.14216157]
[1741242771199,80.8,149.5,149.49,27.09600194]
[1741242771499,0.033,149.51,149.5,0.14216157]
[1741242771703,0.033,149.51,149.5,45.7456508]
[1741242772424,0.033,149.51,149.5,27.09600194]
[1741242772616,0.033,149.51,149.5,339.09600194]
[1741242773016,0.033,149.51,149.5,357.7456508]
[1741242774603,0.033,149.51,149.5,339.09600194]
[1741242775209,0.033,149.51,149.5,26.95384037]
[1741242775599,0.033,149.51,149.5,27.09600194]
[1741242775918,0.033,149.51,149.49,26.95384037]
[1741242776124,0.033,149.51,149.48,26.95384037]
[1741242776725,0.033,149.51,149.5,26.95384037]
[1741242776898,0.033,149.51,149.5,27.09600194]
[1741242777441,80.8,149.5,149.43,1.6242]
[1741242777600,80.8,149.49,149.43,1.6242]
[1741242777796,80.8,149.49,149.46,27.09600194]
[1741242777994,80.8,149.49,149.44,18.64964886]
[1741242778225,80.8,149.49,149.48,26.95384037]
[1741242778405,80.8,149.49,149.48,0.14216157]
[1741242778599,80.8,149.49,149.48,27.09600194]
[1741242778919,80.8,149.49,149.48,26.95384037]
[1741242779118,80.8,149.49,149.47,26.95384037]
[1741242779796,80.8,149.49,149.43,1.6242]
[1741242780114,80.8,149.49,149.46,26.95384037]
[1741242780324,80.8,149.48,149.44,0.14216157]
[1741242780613,80.8,149.48,149.47,27.09600194]
[1741242781821,80.8,149.48,149.47,339.09600194]
[1741242782017,80.8,149.48,149.47,27.09600194]
[1741242783622,80.8,149.5,149.47,0.14216157]
[1741242783809,80.8,149.5,149.46,26.95384037]
[1741242784026,80.8,149.49,149.46,26.95384037]
[1741242785519,80.8,149.49,149.48,27.09600194]
[1741242785824,0.033,149.51,149.48,27.09600194]
[1741242786550,0.033,149.5,149.48,27.09600194]
[1741242786905,0.033,149.5,149.46,26.95384037]
[1741242787115,0.033,149.5,149.48,26.95384037]
[1741242787314,0.033,149.5,149.47,26.95384037]
[1741242788119,0.033,149.5,149.49,26.95384037]
[1741242788627,0.033,149.5,149.49,338.95384037]
[1741242789955,0.033,149.5,149.49,357.7456508]
[1741242790650,0.033,149.5,149.49,347.63139868]
[1741242790857,0.033,149.5,149.49,52.47098693]
[1741242791228,0.033,149.5,149.49,35.63139868]
[1741242792963,0.033,149.5,149.43,1.6387]
[1741242793257,80.833,149.5,149.43,1.6387]
[1741242793426,80.8,149.49,149.43,0.03]
[1741242793728,80.8,149.49,149.44,16.83958825]
[1741242794051,80.8,149.49,149.46,16.83958825]
[1741242794244,80.8,149.48,149.46,16.83958825]
[1741242794626,80.8,149.48,149.46,26.96596626]
[1741242794949,80.8,149.48,149.43,312.03]
[1741242794950,80.8,149.47,149.44,26.96596626]
[1741242795145,80.8,149.47,149.43,312.03]
[1741242795531,80.8,149.47,149.46,0.14216157]
[1741242795728,0.033,149.5,149.47,18.79181043]
[1741242796049,0.033,149.5,149.49,27.10812783]
[1741242796268,0.033,149.5,149.49,45.75777669]
[1741242796638,0.033,149.5,149.49,72.72374295]
[1741242796837,0.033,149.5,149.49,45.75777669]
[1741242797244,0.033,149.5,149.49,72.72374295]
[1741242797557,0.033,149.5,149.49,73.00806609]
[1741242798436,0.033,149.5,149.49,149.04828583]
[1741242798761,0.033,149.56,149.5,46.04209983]
[1741242798958,0.033,149.56,149.55,45.75777669]
[1741242800552,0.033,149.56,149.55,46.04209983]
[1741242800756,51.82594896,149.62,149.56,19.21829514]
[1741242800934,51.82594896,149.62,149.61,27.10812783]
[1741242801438,80.8,149.64,149.61,27.10812783]
[1741242802152,80.8,149.64,149.62,27.10812783]
[1741242802349,80.8,149.64,149.62,339.10812783]
[1741242802757,80.8,149.64,149.63,27.10812783]
[1741242803037,0.033,149.65,149.64,0.14216157]
[1741242803568,0.033,149.65,149.64,27.10812783]
[1741242804367,0.033,149.65,149.58,103.006186]
[1741242804534,0.033,149.65,149.62,0.14216157]
[1741242804734,80.833,149.65,149.62,0.14216157]
[1741242805044,80.833,149.65,149.61,26.96596626]
[1741242805241,80.8,149.64,149.54,77.58531974]
[1741242805469,6.3379,149.62,149.51,1.6085]
[1741242805650,80.8,149.61,149.54,26.96596626]
[1741242805854,94.4,149.6,149.54,26.96596626]
[1741242806055,94.4,149.6,149.55,0.14216157]
[1741242806365,94.4,149.6,149.57,0.14216157]
[1741242806582,80.8,149.6,149.57,0.14216157]
[1741242807672,80.8,149.6,149.51,77.64871974]
[1741242807874,80.8,149.59,149.49,76.04021974]
[1741242808059,94.4,149.59,149.48,19.07613357]
[1741242808265,94.4,149.58,149.5,26.96596626]
[1741242808773,94.4,149.58,149.51,0.14216157]
[1741242808973,94.4,149.57,149.5,26.96596626]
[1741242809479,80.8,149.56,149.5,26.96596626]
[1741242809674,80.8,149.56,149.52,0.14216157]
[1741242810362,80.8,149.56,149.53,27.10812783]
[1741242810566,80.8,149.56,149.53,339.10812783]
[1741242811080,80.8,149.59,149.55,0.14216157]
[1741242811261,80.8,149.59,149.56,0.14216157]
[1741242813373,0.033,149.6,149.59,0.14216157]
[1741242813575,0.033,149.6,149.59,45.75777669]
[1741242816161,0.033,149.6,149.59,357.75777669]
[1741242816778,0.033,149.6,149.59,45.75777669]
[1741242819173,0.033,149.6,149.57,26.96596626]
[1741242819372,0.033,149.6,149.59,0.14216157]
[1741242820783,0.033,149.6,149.54,103.006186]
[1741242820978,80.833,149.6,149.55,26.96596626]
[1741242821192,80.833,149.6,149.56,0.14216157]
[1741242821561,80.833,149.6,149.54,26.96596626]
[1741242821761,80.8,149.59,149.54,26.96596626]
[1741242821957,80.8,149.59,149.55,0.14216157]
[1741242822374,6.097,149.58,149.53,0.03]
[1741242822685,6.097,149.58,149.53,0.17216157]
[1741242823083,6.097,149.58,149.53,312.17216157]
[1741242823586,6.097,149.58,149.53,312.03]
[1741242823884,6.097,149.58,149.54,0.14216157]
[1741242826093,6.097,149.58,149.53,312.03]
[1741242826094,80.8,149.57,149.53,312.03]
[1741242826276,80.8,149.57,149.53,0.03]
[1741242828801,80.8,149.57,149.54,26.96596626]
[1741242829182,80.8,149.57,149.54,338.96596626]
[1741242829591,80.8,149.57,149.54,312.0]
[1741242831197,6.097,149.58,149.53,0.03]
[1741242832098,1.6605,149.56,149.46,26.99596626]
[1741242832304,20.0,149.52,149.46,0.03]
[1741242832477,20.0,149.48,149.46,0.03]
[1741242832677,86.8788,149.51,149.46,0.03]
[1741242832678,86.8788,149.51,149.47,26.96596626]
[1741242832895,6.0788,149.51,149.47,26.96596626]
[1741242833180,6.0788,149.51,149.46,27.13812783]
[1741242833683,80.8,149.5,149.46,0.03]
[1741242833994,80.8,149.5,149.46,26.99596626]
[1741242834194,80.8,149.5,149.47,26.96596626]
[1741242834399,80.8,149.5,149.46,338.99596626]
[1741242835104,80.8,149.5,149.46,312.03]
[1741242837104,6.0788,149.51,149.47,0.14216157]
[1741242837297,6.0788,149.51,149.46,0.17216157]
[1741242837985,80.8,149.53,149.48,26.96596626]
[1741242838195,80.8,149.53,149.46,0.03]
[1741242838402,80.8,149.53,149.46,27.13812783]
[1741242838589,80.8,149.53,149.46,17.0239921]
[1741242838783,80.8,149.53,149.47,16.85183053]
[1741242838981,80.8,149.52,149.47,16.85183053]
[1741242840205,80.8,149.51,149.46,0.03]
[1741242840383,20.0,149.47,149.43,0.03]
[1741242840582,88.5749,149.49,149.45,16.85183053]
[1741242840800,86.9555,149.49,149.46,16.85183053]
[1741242841808,80.8,149.49,149.47,0.14216157]
[1741242842109,80.8,149.49,149.48,16.85183053]
[1741242842811,80.8,149.49,149.48,27.09928576]
[1741242842989,7.9656,149.53,149.49,0.14216157]
[1741242843605,7.9656,149.53,149.49,26.95712419]
[1741242843810,6.3462,149.53,149.49,26.95712419]
[1741242844009,80.8,149.54,149.51,26.95712419]
[1741242844505,80.8,149.54,149.5,26.95712419]
[1741242845293,80.8,149.54,149.49,27.09928576]
[1741242845688,80.8,149.54,149.49,339.09928576]
[1741242846897,80.8,149.54,149.5,26.95712419]
[1741242847900,80.8,149.56,149.52,26.95712419]
[1741242848100,6.6366,149.57,149.54,0.14216157]
[1741242848305,6.6366,149.57,149.54,27.09928576]
[1741242848600,80.8,149.58,149.54,27.09928576]
[1741242850012,80.8,149.58,149.54,0.14216157]
[1741242850811,80.8,149.58,149.54,312.14216157]
[1741242851518,80.8,149.58,149.54,0.14216157]
[1741242852312,80.8,149.58,149.53,26.95712419]
[1741242852512,80.8,149.58,149.53,0.14216157]
[1741242853012,80.8,149.58,149.53,26.95712419]
[1741242853410,80.8,149.58,149.54,0.14216157]
[1741242853600,80.8,149.58,149.54,27.09928576]
[1741242855292,80.8,149.58,149.54,0.14216157]
[1741242856017,80.8,149.58,149.54,27.09928576]
[1741242856235,80.8,149.58,149.55,0.14216157]
[1741242856521,80.8,149.58,149.55,27.09928576]
[1741242856728,80.8,149.58,149.54,26.95712419]
[1741242856934,80.8,149.58,149.55,0.14216157]
[1741242857226,0.033,149.59,149.57,0.14216157]
[1741242857427,0.033,149.59,149.57,27.09928576]
[1741242857996,0.033,149.59,149.57,339.09928576]
[1741242858397,0.033,149.59,149.57,312.14216157]
[1741242858623,0.033,149.59,149.57,339.09928576]
[1741242859222,0.033,149.59,149.57,312.14216157]
[1741242859927,0.033,149.59,149.57,339.09928576]
[1741242861309,0.033,149.59,149.58,26.95712419]
[1741242861506,0.033,149.59,149.58,27.09928576]
[1741242861703,0.033,149.59,149.58,45.74893462]
[1741242864230,4.99104549,149.59,149.58,357.74893462]
[1741242864607,4.99104549,149.59,149.58,347.61270671]
[1741242864816,4.99104549,149.59,149.58,423.93724959]
[1741242865128,0.033,149.59,149.58,425.45334959]
[1741242865516,0.033,149.59,149.58,425.16902645]
[1741242866326,0.033,149.59,149.58,388.18238131]
[1741242867826,4.98772463,149.59,149.58,388.18238131]
[1741242868018,4.98772463,149.59,149.54,18.46039628]
[1741242868322,4.98772463,149.59,149.54,16.82089628]
[1741242868535,4.98772463,149.59,149.53,92.86111602]
[1741242868739,4.98772463,149.59,149.54,0.14216157]
[1741242869214,4.95472463,149.58,149.54,0.14216157]
[1741242870117,80.8,149.57,149.51,16.82089628]
[1741242870318,80.8,149.57,149.5,94.49531602]
[1741242870526,85.75472463,149.57,149.5,94.49531602]
[1741242870817,85.75472463,149.57,149.51,0.14216157]
[1741242871022,85.75472463,149.57,149.51,312.14216157]
[1741242871625,4.95472463,149.56,149.51,312.14216157]
[1741242872236,4.95472463,149.56,149.51,0.14216157]
[1741242872818,4.95472463,149.55,149.51,0.14216157]
[1741242873213,20.0,149.54,149.51,0.14216157]
[1741242873424,4.95472463,149.55,149.5,0.14216157]
[1741242873425,20.0,149.52,149.5,0.14216157]
[1741242874640,20.0,149.52,149.49,16.82089628]
[1741242874835,20.0,149.52,149.5,0.14216157]
[1741242875030,4.95472463,149.53,149.5,328.96305785]
[1741242875223,4.95472463,149.53,149.52,0.14216157]
[1741242875449,80.8,149.56,149.52,16.96305785]
[1741242875623,80.8,149.56,149.54,0.14216157]
[1741242875823,80.8,149.58,149.54,0.14216157]
[1741242876627,80.8,149.58,149.5,92.86111602]